bitfinex/quotes_SOLUSD_20241115
["timestamp","ask_amount","ask_price","bid_price","bid_amount"]
[1731670382620,20.0,213.06,213.0,9.30661157]
[1731670382827,20.0,213.06,213.01,9.30661157]
[1731670383017,9.30661157,213.05,212.99,9.30661157]
[1731670383347,20.1,213.09,212.96,9.30661157]
[1731670383348,9.30661157,213.02,212.96,9.30661157]
[1731670384633,9.30661157,213.01,212.94,21.04661157]
[1731670384835,20.0,213.03,212.94,21.04661157]
[1731670384836,9.30661157,213.0,212.94,21.04661157]
[1731670385011,9.30661157,213.02,212.95,9.30661157]
[1731670385217,9.30661157,213.01,212.95,9.30661157]
[1731670385834,14.00091157,213.02,212.95,9.30661157]
[1731670386638,4.6943,213.02,212.96,9.30661157]
[1731670388137,4.6943,213.02,212.97,9.30661157]
[1731670388525,11.7337,213.06,213.0,9.30661157]
[1731670388526,20.0,213.06,213.0,9.30661157]
[1731670388728,20.0,213.06,213.01,9.30661157]
[1731670389130,29.30661157,213.07,213.0,9.30661157]
[1731670389737,4.6935,213.06,213.0,9.30661157]
[1731670391128,29.30661157,213.07,213.02,9.30661157]
[1731670391129,20.0,213.07,213.02,9.30661157]
[1731670391351,33.99991157,213.07,213.01,9.30661157]
[1731670392446,33.99991157,213.07,213.0,25.73831157]
[1731670392739,20.0,213.05,213.0,0.09367462]
[1731670393519,20.0,213.07,213.01,9.30661157]
[1731670393848,20.0,213.05,213.0,9.30661157]
[1731670394846,24.6938,213.05,213.0,9.30661157]
[1731670396223,24.6938,213.05,213.0,0.09367462]
[1731670400057,24.6938,213.05,213.0,9.40028619]
[1731670400952,34.00041157,213.05,212.98,9.40028619]
[1731670401347,9.30661157,213.01,212.97,11.7387]
[1731670401533,9.30661157,213.01,212.96,0.09367462]
[1731670403049,4.6944,213.02,212.97,9.30661157]
[1731670403252,4.6944,213.02,212.94,0.09367462]
[1731670403253,4.6944,213.02,212.96,14.00221157]
[1731670403447,14.00101157,213.02,212.97,0.09367462]
[1731670404027,4.6944,213.02,212.97,0.09367462]
[1731670404259,9.30661157,213.02,212.97,0.09367462]
[1731670405379,9.30661157,213.01,212.97,0.09367462]
[1731670405840,9.30661157,212.99,212.94,4.696]
[1731670406163,9.30661157,212.99,212.95,0.09367462]
[1731670406467,9.30661157,213.0,212.95,0.09367462]
[1731670407336,9.30661157,212.99,212.92,14.00301157]
[1731670408458,9.30661157,212.96,212.9,11.7422]
[1731670408654,9.30661157,212.95,212.9,16.4392]
[1731670408860,9.30661157,212.95,212.87,4.6977]
[1731670409055,9.30661157,212.94,212.88,9.30661157]
[1731670409761,9.30661157,212.95,212.89,9.30661157]
[1731670410463,169.2669,213.02,212.95,0.09367462]
[1731670410464,169.1669,213.02,212.95,0.09367462]
[1731670410640,14.00121157,213.01,212.95,9.40028619]
[1731670410839,14.00121157,213.01,212.95,0.09367462]
[1731670411040,9.30661157,213.0,212.95,0.09367462]
[1731670412754,14.00121157,213.01,212.95,0.09367462]
[1731670412943,34.00121157,213.01,212.95,0.09367462]
[1731670413143,34.00121157,213.01,212.95,4.78957462]
[1731670413870,20.0,213.01,212.96,9.30661157]
[1731670414164,4.6941,213.04,212.98,9.40028619]
[1731670414462,4.6941,213.04,212.99,9.30661157]
[1731670415042,4.6941,213.04,212.98,0.09367462]
[1731670415043,4.6937,213.06,213.01,9.30661157]
[1731670415246,14.00031157,213.06,213.01,0.09367462]
[1731670415457,20.0,213.05,213.01,0.09367462]
[1731670415836,20.0,213.04,212.98,25.73941157]
[1731670417271,20.0,213.04,212.99,0.09367462]
[1731670417442,24.694,213.04,212.99,9.40028619]
[1731670417944,24.694,213.04,212.99,0.09367462]
[1731670418553,24.694,213.04,212.99,9.40028619]
[1731670420556,34.00061157,213.04,212.99,0.09367462]
[1731670421361,20.0,213.06,213.01,0.09367462]
[1731670421670,18.2880366,213.07,213.01,9.30661157]
[1731670422365,4.6935,213.06,213.01,9.30661157]
[1731670422944,9.30661157,213.05,213.0,0.09367462]
[1731670423144,9.30661157,213.01,212.95,25.74231157]
[1731670423665,9.30661157,213.01,212.96,0.09367462]
[1731670423970,9.30661157,213.02,212.96,9.40028619]
[1731670424162,9.30661157,213.02,212.96,14.09578619]
[1731670424551,14.00101157,213.02,212.96,14.09578619]
[1731670424955,4.6944,213.02,212.96,14.09578619]
[1731670425153,4.6944,213.02,212.97,9.30661157]
[1731670425358,24.6935,213.06,213.0,0.09367462]
[1731670425559,9.30661157,213.05,213.0,0.09367462]
[1731670426259,9.30661157,213.05,212.99,0.09367462]
[1731670426447,14.00031157,213.05,212.99,4.78867462]
[1731670426965,14.00031157,213.05,212.99,14.09528619]
[1731670427142,14.00031157,213.05,212.99,4.78867462]
[1731670427342,9.30661157,213.03,212.96,21.04581157]
[1731670427568,9.30661157,213.02,212.96,11.7392]
[1731670427974,9.30661157,213.02,212.97,0.09367462]
[1731670428352,9.30661157,213.01,212.97,0.09367462]
[1731670428553,9.30661157,213.0,212.97,0.09367462]
[1731670428774,9.30661157,213.01,212.97,0.09367462]
[1731670431370,9.30661157,213.02,212.97,0.09367462]
[1731670431545,9.30661157,213.02,212.97,4.78907462]
[1731670432379,9.30661157,213.01,212.97,4.78907462]
[1731670434773,4.6937,213.05,212.98,9.30661157]
[1731670435076,20.0,213.03,212.98,9.30661157]
[1731670435281,29.30661157,213.03,212.97,25.83438619]
[1731670435576,9.30661157,213.01,212.97,16.52777462]
[1731670435752,9.30661157,213.02,212.97,16.52777462]
[1731670436269,9.30661157,213.03,212.97,25.83438619]
[1731670436454,24.6938,213.05,212.97,16.52777462]
[1731670436648,9.30661157,213.03,212.97,16.52777462]
[1731670436975,9.30661157,213.0,212.95,0.09367462]
[1731670437476,36.4281,213.05,212.95,0.09367462]
[1731670437477,9.30661157,213.01,212.95,9.40028619]
[1731670437976,9.30661157,213.01,212.96,4.6957]
[1731670438185,9.30661157,213.03,212.97,0.09367462]
[1731670439954,14.00081157,213.03,212.97,4.78907462]
[1731670441679,9.30661157,213.02,212.97,4.78907462]
[1731670442086,9.30661157,213.03,212.97,4.78907462]
[1731670443451,14.00071157,213.03,212.97,4.78907462]
[1731670444384,9.30661157,213.02,212.97,4.78907462]
[1731670445881,9.30661157,213.03,212.97,4.78907462]
[1731670447289,14.00081157,213.03,212.97,4.78907462]
[1731670451357,9.30661157,213.04,212.97,25.83438619]
[1731670451591,20.0,213.03,212.97,25.83438619]
[1731670451778,9.30661157,213.04,212.97,25.83438619]
[1731670452089,9.30661157,213.03,212.97,16.52777462]
[1731670454360,14.00061157,213.04,212.97,25.83438619]
[1731670459389,14.00061157,213.04,212.97,16.52777462]
[1731670460064,9.30661157,213.01,212.97,11.83237462]
[1731670460261,9.30661157,212.98,212.94,20.395]
[1731670460483,9.30661157,212.97,212.94,20.395]
[1731670460888,9.30661157,212.97,212.94,15.6989]
[1731670461380,9.30661157,212.97,212.94,20.3949]
[1731670462279,9.30661157,212.98,212.94,20.3949]
[1731670462467,4.6948,213.01,212.94,20.3949]
[1731670462468,9.30661157,212.99,212.94,20.3949]
[1731670464392,9.30661157,213.01,212.95,9.40028619]
[1731670464568,20.0,213.01,212.95,9.40028619]
[1731670465282,9.30661157,213.01,212.95,9.40028619]
[1731670465479,9.30661157,213.01,212.95,14.09598619]
[1731670465794,9.30661157,212.99,212.94,27.4392]
[1731670465995,9.30661157,212.98,212.94,27.4392]
[1731670466381,9.30661157,212.98,212.94,32.1353]
[1731670466694,9.30661157,212.96,212.92,11.008]
[1731670466898,9.30661157,212.96,212.92,4.6964]
[1731670467592,9.30661157,212.96,212.91,0.09367462]
[1731670468780,9.30661157,212.96,212.91,4.79027462]
[1731670469600,9.30661157,212.96,212.91,16.53227462]
[1731670470094,9.30661157,212.97,212.91,25.83888619]
[1731670470281,4.6954,212.98,212.91,25.83888619]
[1731670470282,14.00201157,212.98,212.91,25.83888619]
[1731670470594,24.6954,212.98,212.92,14.00301157]
[1731670471577,4.6945,213.02,212.95,0.09367462]
[1731670471903,9.30661157,213.01,212.95,9.40028619]
[1731670472393,9.30661157,213.01,212.94,9.40028619]
[1731670472783,9.30661157,213.01,212.95,4.6959]
[1731670473786,20.0,213.03,212.96,21.13948619]
[1731670473978,9.30661157,213.03,212.97,9.30661157]
[1731670474377,9.30661157,213.05,212.98,9.30661157]
[1731670474598,13.6751004,213.06,212.99,9.40028619]
[1731670474796,22.98171197,213.06,212.99,9.40028619]
[1731670475005,22.98171197,213.06,213.0,9.30661157]
[1731670475877,20.0,213.05,213.0,9.30661157]
[1731670476091,13.6751004,213.06,213.01,0.09367462]
[1731670476280,8.9815004,213.06,213.02,9.30661157]
[1731670477002,8.9815004,213.06,213.03,0.09367462]
[1731670477180,18.28811197,213.06,213.0,25.73831157]
[1731670477380,18.28811197,213.06,213.01,0.09367462]
[1731670478991,8.9815004,213.06,213.01,4.78817462]
[1731670479197,8.9815004,213.06,213.01,16.52467462]
[1731670480586,18.28811197,213.06,213.01,16.52467462]
[1731670481008,8.9815004,213.06,213.01,16.52467462]
[1731670482593,18.28811197,213.06,213.01,16.52467462]
[1731670483412,18.28811197,213.06,213.01,11.7365]
[1731670483591,20.0,213.02,212.97,11.7386]
[1731670483778,9.30661157,212.99,212.97,11.7386]
[1731670484601,9.30661157,213.01,212.97,16.434]
[1731670485297,9.30661157,213.02,212.97,16.434]
[1731670485607,29.30661157,213.05,212.98,9.40028619]
[1731670485907,20.0,213.05,212.98,9.40028619]
[1731670486079,29.30661157,213.05,212.98,9.40028619]
[1731670486802,29.30661157,213.05,212.99,4.695]
[1731670487305,8.9815004,213.06,213.01,9.30661157]
[1731670487483,8.9815004,213.06,213.0,9.40028619]
[1731670487683,8.9815004,213.06,213.0,0.09367462]
[1731670487905,8.9815004,213.06,213.0,9.40028619]
[1731670488324,8.9815004,213.06,213.01,9.30661157]
[1731670489089,8.9815004,213.06,213.01,14.00101157]
[1731670490301,8.9815004,213.06,213.02,14.09458619]
[1731670490493,8.9815004,213.06,213.02,25.83048619]
[1731670491409,8.9815004,213.06,213.02,25.73681157]
[1731670491589,8.9815004,213.06,213.04,9.30661157]
[1731670492195,8.9815004,213.06,213.03,9.40028619]
[1731670492711,8.9815004,213.06,213.04,16.4287]
[1731670493296,8.9815004,213.06,213.04,25.73531157]
[1731670494411,8.9815004,213.06,213.04,16.4287]
[1731670495101,8.9815004,213.06,213.04,25.73531157]
[1731670496011,8.9815004,213.06,213.04,16.4287]
[1731670498354,8.9815004,213.06,213.04,25.73531157]
[1731670498698,8.9815004,213.06,213.05,0.09367462]
[1731670498895,8.9815004,213.06,213.05,9.40028619]
[1731670500623,8.9815004,213.06,213.05,14.09398619]
[1731670500816,9.30661157,213.14,213.05,41.91778619]
[1731670501021,9.30661157,213.16,213.09,9.30661157]
[1731670501195,9.30661157,213.15,213.1,0.09367462]
[1731670501525,4.6912,213.17,213.05,32.5175]
[1731670501526,9.30661157,213.14,213.07,9.30661157]
[1731670501718,9.30661157,213.14,213.08,0.09367462]
[1731670501916,9.30661157,213.14,213.09,16.4249]
[1731670503831,20.0,213.14,213.09,16.4249]
[1731670505019,20.0,213.14,213.1,0.09367462]
[1731670505339,170.15157364,213.18,213.13,0.09367462]
[1731670505512,162.8,213.18,213.13,9.30661157]
[1731670505706,162.8,213.18,213.13,0.09367462]
[1731670506219,172.10661157,213.18,213.13,0.09367462]
[1731670506421,172.10661157,213.18,213.12,0.09367462]
[1731670506632,20.0,213.17,213.13,4.6919]
[1731670507711,20.0,213.18,213.13,4.6919]
[1731670508434,162.8,213.18,213.15,9.40028619]
[1731670508622,162.8,213.2,213.15,9.40028619]
[1731670509529,20.0,213.19,213.15,9.30661157]
[1731670509726,20.0,213.19,213.14,25.82128619]
[1731670510530,20.0,213.19,213.16,9.30661157]
[1731670510930,20.0,213.19,213.17,4.691]
[1731670512124,162.8,213.18,213.17,4.691]
[1731670512334,162.8,213.18,213.16,4.6913]
[1731670512820,162.8,213.18,213.16,16.4195]
[1731670513226,162.8,213.18,213.16,25.72611157]
[1731670513425,162.8,213.2,213.16,25.72611157]
[1731670514521,162.8,213.19,213.17,9.40028619]
[1731670514737,162.8,213.19,213.18,9.40028619]
[1731670514923,8.97556029,213.21,213.19,0.09367462]
[1731670515127,8.97556029,213.21,213.2,9.30661157]
[1731670515817,9.30661157,213.27,213.2,9.30661157]
[1731670516345,20.0,213.26,213.2,9.30661157]
[1731670516524,9.30661157,213.26,213.21,4.6902]
[1731670516718,9.30661157,213.25,213.21,4.6902]
[1731670517116,9.30661157,213.26,213.21,4.6902]
[1731670518147,9.30661157,213.25,213.21,4.6902]
[1731670519837,9.30661157,213.22,213.16,11.728]
[1731670520332,9.30661157,213.19,213.16,11.728]
[1731670521841,9.30661157,213.18,213.16,11.728]
[1731670522623,9.30661157,213.19,213.16,11.728]
[1731670522824,4.6893,213.25,213.16,11.728]
[1731670523023,9.30661157,213.19,213.16,11.728]
[1731670526148,24.6893,213.25,213.16,11.728]
[1731670526340,9.30661157,213.19,213.16,11.728]
[1731670526943,24.6893,213.25,213.16,11.728]
[1731670527142,9.30661157,213.22,213.16,16.4193]
[1731670527554,20.0,213.21,213.16,16.4193]
[1731670528351,20.0,213.25,213.18,9.30661157]
[1731670528651,20.4635,213.27,213.18,9.30661157]
[1731670528843,9.30661157,213.24,213.17,9.40028619]
[1731670529038,9.30661157,213.23,213.17,9.40028619]
[1731670529852,9.30661157,213.22,213.17,0.09367462]
[1731670530051,9.30661157,213.23,213.17,0.09367462]
[1731670530444,9.30661157,213.23,213.18,4.6908]
[1731670530639,9.30661157,213.23,213.18,16.4179]
[1731670531256,9.30661157,213.21,213.14,11.7291]
[1731670531438,9.30661157,213.18,213.14,16.4208]
[1731670531635,9.30661157,213.19,213.14,16.4208]
[1731670533856,9.30661157,213.2,213.14,16.4208]
[1731670534441,9.30661157,213.19,213.14,16.4208]
[1731670535262,9.30661157,213.2,213.14,25.72741157]
[1731670535750,9.30661157,213.19,213.14,16.4208]
[1731670537963,20.0,213.2,213.14,25.72741157]
[1731670538337,29.30661157,213.2,213.14,16.4208]
[1731670539059,23.776884,213.25,213.14,25.72741157]
[1731670539249,9.30661157,213.21,213.15,9.30661157]
[1731670540178,9.30661157,213.22,213.15,9.30661157]
[1731670540377,9.30661157,213.25,213.18,9.30661157]
[1731670541154,9.30661157,213.25,213.19,16.4172]
[1731670541573,20.0,213.24,213.19,16.4172]
[1731670541955,20.0,213.27,213.23,9.30661157]
[1731670543167,9.30661157,213.26,213.23,11.7242]
[1731670543479,9.30661157,213.25,213.23,11.7242]
[1731670543682,9.30661157,213.26,213.23,11.7242]
[1731670543984,20.0,213.27,213.23,25.72051157]
[1731670544359,18.2795263,213.28,213.23,16.4139]
[1731670545097,9.30661157,213.27,213.23,16.4139]
[1731670545256,9.30661157,213.27,213.23,11.7242]
[1731670545966,18.2795263,213.28,213.23,11.7242]
[1731670546169,9.30661157,213.27,213.23,11.7242]
[1731670546869,18.2795263,213.28,213.23,11.7242]
[1731670548778,8.97291473,213.28,213.24,15.1778]
[1731670549588,18.2795263,213.28,213.24,15.1778]
[1731670549971,18.2795263,213.28,213.24,19.8673]
[1731670551085,9.30661157,213.27,213.23,11.7242]
[1731670551684,9.30661157,213.26,213.23,11.7242]
[1731670552370,9.30661157,213.27,213.23,11.7242]
[1731670552685,9.30661157,213.25,213.2,16.4164]
[1731670552889,9.30661157,213.24,213.2,16.4164]
[1731670553092,9.30661157,213.21,213.16,23.0663]
[1731670553262,9.30661157,213.2,213.16,23.0663]
[1731670553468,9.30661157,213.21,213.16,23.0663]
[1731670554389,9.30661157,213.25,213.2,16.4164]
[1731670554567,20.0,213.24,213.2,16.4164]
[1731670554769,29.30661157,213.27,213.2,25.72301157]
[1731670555289,9.30661157,213.26,213.2,25.72301157]
[1731670558698,9.30661157,213.26,213.2,21.03261157]
[1731670559799,8.97291473,213.28,213.2,25.72301157]
[1731670559800,9.30661157,213.27,213.2,25.72301157]
[1731670563204,8.97291473,213.28,213.2,25.72301157]
[1731670563496,8.97291473,213.28,213.22,9.30661157]
[1731670563873,8.97291473,213.28,213.24,9.30661157]
[1731670564210,8.97291473,213.28,213.23,9.30661157]
[1731670564369,8.97291473,213.28,213.23,9.11902251]
[1731670565502,0.4662874,213.34,213.27,9.30661157]
[1731670565806,0.4662874,213.34,213.29,9.30661157]
[1731670567279,0.4662874,213.34,213.3,4.6882]
[1731670568007,0.4662874,213.34,213.33,9.30661157]
[1731670568380,0.4662874,213.34,213.32,9.30661157]
[1731670568579,0.4662874,213.34,213.33,9.40028619]
[1731670568779,0.4662874,213.34,213.33,0.09367462]
[1731670569191,0.4662874,213.34,213.31,11.72]
[1731670569584,9.77289897,213.34,213.31,11.72]
[1731670569905,0.4662874,213.34,213.31,11.72]
[1731670570282,9.77289897,213.34,213.31,11.72]
[1731670570702,20.0,213.31,213.23,31.8363]
[1731670570879,9.30661157,213.28,213.23,31.8363]
[1731670571275,9.30661157,213.27,213.23,31.8363]
[1731670571502,9.30661157,213.26,213.23,15.4222]
[1731670571719,9.30661157,213.25,213.2,4.6904]
[1731670572003,9.30661157,213.25,213.2,16.4164]
[1731670572209,9.30661157,213.26,213.2,16.4164]
[1731670572396,9.30661157,213.27,213.21,9.30661157]
[1731670572703,9.30661157,213.27,213.2,25.72301157]
[1731670573708,9.30661157,213.25,213.2,16.4164]
[1731670573882,20.4662874,213.34,213.25,0.09367462]
[1731670574089,9.30661157,213.32,213.26,9.30661157]
[1731670574392,0.4662874,213.34,213.27,9.40028619]
[1731670574707,0.4662874,213.34,213.29,9.30661157]
[1731670575006,0.4662874,213.34,213.31,9.30661157]
[1731670575189,0.4662874,213.34,213.3,9.30661157]
[1731670575389,0.4662874,213.34,213.29,9.30661157]
[1731670575900,0.4662874,213.34,213.31,0.09367462]
[1731670576785,0.4662874,213.34,213.32,16.4071]
[1731670577716,0.4662874,213.34,213.32,25.71371157]
[1731670578131,0.4662874,213.34,213.33,9.30661157]
[1731670578315,0.4662874,213.34,213.32,16.4071]
[1731670578819,0.4662874,213.34,213.32,25.71371157]
[1731670579421,0.4662874,213.34,213.32,16.4071]
[1731670580517,0.4662874,213.34,213.33,9.40028619]
[1731670581407,0.4662874,213.34,213.33,33.17717019]
[1731670594808,0.4662874,213.34,213.33,44.45737019]
[1731670595126,0.4662874,213.34,213.33,59.85657019]
[1731670606528,8.74e-05,213.34,213.33,59.95657019]
[1731670606733,8.74e-05,213.34,213.33,72.50994047]
[1731670607106,20.0,213.46,213.35,0.09367462]
[1731670607329,9.30661157,213.44,213.38,9.30661157]
[1731670607509,9.30661157,213.45,213.38,9.30661157]
[1731670607710,29.30661157,213.46,213.39,9.30661157]
[1731670608417,29.30661157,213.46,213.35,0.09367462]
[1731670608418,29.30661157,213.46,213.4,9.30661157]
[1731670608734,29.30661157,213.46,213.39,9.30661157]
[1731670609633,29.30661157,213.46,213.4,16.401]
[1731670610421,20.0,213.46,213.4,25.70761157]
[1731670613130,20.0,213.46,213.4,16.401]
[1731670613735,20.0,213.46,213.41,0.09367462]
[1731670614233,8.96593479,213.47,213.43,9.30661157]
[1731670615214,15.0955,213.5,213.44,9.30661157]
[1731670615423,0.4662874,213.55,213.49,16.3941]
[1731670615424,15.9548874,213.55,213.49,16.3941]
[1731670615624,25.26149897,213.55,213.49,16.3941]
[1731670616235,15.9548874,213.55,213.5,9.30661157]
[1731670616410,0.4662874,213.55,213.5,9.30661157]
[1731670616816,0.4662874,213.55,213.51,9.30661157]
[1731670617432,0.4662874,213.55,213.52,4.6834]
[1731670617726,0.4662874,213.55,213.5,4.77727462]
[1731670617930,0.4662874,213.55,213.5,16.48687462]
[1731670618232,0.4662874,213.55,213.5,16.3932]
[1731670618413,9.30661157,213.53,213.5,16.3932]
[1731670619539,9.30661157,213.54,213.47,25.70221157]
[1731670620632,9.30661157,213.53,213.47,21.01781157]
[1731670620819,9.30661157,213.53,213.48,0.09367462]
[1731670621915,9.30661157,213.52,213.47,11.7112]
[1731670622238,9.30661157,213.52,213.47,16.3956]
[1731670623635,9.30661157,213.51,213.47,16.3956]
[1731670624540,9.30661157,213.5,213.46,4.6847]
[1731670624846,9.30661157,213.5,213.45,4.6848]
[1731670625427,9.30661157,213.51,213.45,4.6848]
[1731670625619,9.30661157,213.51,213.45,13.99141157]
[1731670625931,9.30661157,213.52,213.46,9.30661157]
[1731670626325,9.30661157,213.51,213.45,25.70371157]
[1731670626824,0.4662874,213.55,213.51,0.09367462]
[1731670627017,0.4662874,213.55,213.52,9.30661157]
[1731670627220,0.4662874,213.55,213.51,0.09367462]
[1731670627622,0.4662874,213.55,213.5,0.09367462]
[1731670627946,0.4662874,213.55,213.51,25.69921157]
[1731670628247,0.4662874,213.55,213.51,16.3926]
[1731670628631,0.4662874,213.55,213.51,25.69921157]
[1731670630149,0.4662874,213.55,213.52,9.30661157]
[1731670630463,0.4662874,213.55,213.52,9.40028619]
[1731670630951,0.4662874,213.55,213.54,9.40028619]
[1731670632124,0.4662874,213.55,213.54,14.08318619]
[1731670638156,0.4662874,213.55,213.51,11.709]
[1731670638359,9.30661157,213.54,213.51,16.3926]
[1731670638859,0.4662874,213.55,213.51,16.3926]
[1731670640357,0.4662874,213.55,213.5,9.30661157]
[1731670641236,0.4662874,213.55,213.49,9.30661157]
[1731670641861,0.4662874,213.55,213.5,9.30661157]
[1731670642270,0.4662874,213.55,213.47,16.3956]
[1731670642271,9.77289897,213.55,213.49,9.30661157]
[1731670642447,0.4662874,213.55,213.5,9.30661157]
[1731670642871,0.4662874,213.55,213.49,9.30661157]
[1731670643370,0.4662874,213.55,213.5,9.30661157]
[1731670643568,0.4662874,213.55,213.52,9.30661157]
[1731670643746,0.4662874,213.55,213.53,9.30661157]
[1731670643946,0.4662874,213.55,213.54,4.6829]
[1731670644348,0.4662874,213.55,213.54,14.08318619]
[1731670645761,0.4662874,213.55,213.54,53.76787019]
[1731670646755,0.4662874,213.55,213.54,53.86787019]
[1731670648171,0.4662874,213.55,213.54,44.56125862]
[1731670648542,0.4662874,213.55,213.54,53.86787019]
[1731670649168,0.4662874,213.55,213.54,53.76787019]
[1731670650252,0.4662874,213.55,213.54,4.77657462]
[1731670650656,0.4662874,213.55,213.54,14.08318619]
[1731670651162,0.4662874,213.55,213.54,4.6829]
[1731670651355,0.4662874,213.55,213.54,13.98951157]
[1731670651539,0.4662874,213.55,213.54,4.77657462]
[1731670652764,0.4662874,213.55,213.53,16.3909]
[1731670653967,0.4662874,213.55,213.54,0.09367462]
[1731670654755,0.4662874,213.55,213.54,9.40028619]
[1731670658657,0.4662874,213.55,213.54,33.27717019]
[1731670658855,0.4662874,213.55,213.54,33.37717019]
[1731670660168,6.2963,213.68,213.57,0.09367462]
[1731670660475,6.2963,213.68,213.63,9.30661157]
[1731670660771,6.2963,213.68,213.64,4.6807]
[1731670661883,6.2963,213.68,213.62,9.30661157]
[1731670662757,29.30661157,213.71,213.65,0.09367462]
[1731670662957,20.0,213.71,213.65,9.40028619]
[1731670663358,9.30661157,213.71,213.64,9.30661157]
[1731670664081,9.30661157,213.71,213.65,16.47547462]
[1731670665855,40.39431157,213.72,213.65,25.78208619]
[1731670666278,31.0877,213.72,213.66,9.30661157]
[1731670666485,31.0877,213.72,213.67,9.30661157]
[1731670667055,15.0,213.72,213.67,9.30661157]
[1731670668183,15.0,213.72,213.68,16.3795]
[1731670668355,15.0,213.72,213.68,25.68611157]
[1731670669157,15.0,213.72,213.68,16.3795]
[1731670669961,15.0,213.72,213.68,25.68611157]
[1731670670362,15.0,213.72,213.66,9.30661157]
[1731670670570,28.98561157,213.72,213.65,4.6804]
[1731670670868,24.30661157,213.72,213.65,25.68831157]
[1731670671582,15.0,213.72,213.67,9.30661157]
[1731670671979,15.0,213.72,213.68,4.6798]
[1731670673777,15.0,213.72,213.69,9.30661157]
[1731670673975,15.0,213.72,213.69,4.6794]
[1731670675183,15.0,213.72,213.68,11.6997]
[1731670675493,15.0,213.72,213.68,16.3795]
[1731670676094,9.30661157,213.71,213.66,4.6801]
[1731670676295,9.30661157,213.7,213.66,4.6801]
[1731670676483,9.30661157,213.71,213.66,4.6801]
[1731670676794,15.0,213.72,213.66,16.3809]
[1731670677096,9.30661157,213.71,213.66,16.3809]
[1731670678898,9.30661157,213.71,213.64,9.30661157]
[1731670679201,15.0,213.72,213.65,9.30661157]
[1731670679380,9.30661157,213.71,213.65,9.30661157]
[1731670680301,9.30661157,213.7,213.64,9.30661157]
[1731670680475,9.30661157,213.7,213.64,0.09367462]
[1731670682109,24.30661157,213.72,213.66,9.40028619]
[1731670683707,24.30661157,213.72,213.67,25.68691157]
[1731670683708,15.0,213.72,213.67,25.68691157]
[1731670685199,15.0,213.72,213.69,9.30661157]
[1731670685407,15.0,213.72,213.68,9.30661157]
[1731670686609,15.0,213.72,213.69,9.30661157]
[1731670687095,15.0,213.72,213.71,9.30661157]
[1731670688308,15.0,213.72,213.7,25.68461157]
[1731670688607,15.0,213.72,213.71,9.30661157]
[1731670690394,15.0,213.72,213.7,9.30661157]
[1731670692399,15.0,213.72,213.71,4.6792]
[1731670692596,15.0,213.72,213.71,13.98581157]
[1731670694391,15.0,213.72,213.7,11.6985]
[1731670694586,15.0,213.72,213.66,44.40871157]
[1731670694807,15.0,213.72,213.67,4.6799]
[1731670695213,13.98581157,213.71,213.63,4.6809]
[1731670695407,9.30661157,213.71,213.64,9.30661157]
[1731670695613,24.30661157,213.72,213.65,9.30661157]
[1731670695917,9.30661157,213.71,213.66,4.6803]
[1731670696217,24.30661157,213.72,213.66,25.68771157]
[1731670696512,15.0,213.72,213.67,9.30661157]
[1731670696816,15.0,213.72,213.68,9.30661157]
[1731670697729,15.0,213.72,213.69,4.6796]
[1731670699297,15.0,213.72,213.69,25.68531157]
[1731670699495,15.0,213.72,213.71,9.30661157]
[1731670699915,15.0,213.72,213.69,25.68531157]
[1731670700512,15.0,213.72,213.7,9.30661157]
[1731670700718,15.0,213.72,213.71,9.30661157]
[1731670701997,15.0,213.72,213.71,9.40028619]
[1731670702822,15.0,213.72,213.71,14.07948619]
[1731670705305,15.0,213.72,213.71,13.98581157]
[1731670714632,15.0,213.72,213.7,11.6985]
[1731670714818,15.0,213.72,213.71,9.30661157]
[1731670715410,15.0,213.72,213.7,11.6985]
[1731670716234,15.0,213.72,213.7,21.00511157]
[1731670716836,15.0,213.72,213.71,9.30661157]
[1731670717816,15.0,213.72,213.7,16.3779]
[1731670718016,15.0,213.72,213.66,11.7008]
[1731670718219,9.30661157,213.71,213.66,11.7008]
[1731670718831,22.1639,213.66,213.51,103.24415494]
[1731670719132,9.30661157,213.62,213.55,21.01321157]
[1731670719710,9.30661157,213.62,213.55,11.7066]
[1731670719911,9.30661157,213.61,213.55,11.7066]
[1731670720535,9.30661157,213.63,213.56,9.30661157]
[1731670721410,9.30661157,213.63,213.57,4.6823]
[1731670722414,9.30661157,213.62,213.57,16.388]
[1731670723337,9.30661157,213.63,213.57,16.388]
[1731670723568,9.30661157,213.64,213.57,9.30661157]